Cogmind - Beta 12 X4 @@@ ROGUE MODE // 2022.10.08 @ 18:23:00 Player: LU-1G1 Result: Destroyed by as-09154 with Assembled Rifle Performance ------------- Evolutions (0) 0 Regions Visited (4) 800 Robots Destroyed (51) 255 Value Destroyed (1264) 1264 Prototype IDs (23) 460 Alien Tech Used (0) 0 Bonus (332) 332 TOTAL SCORE: 3111 Bonus ------- High Alert Combat Kills 32 Aligned with FarCom 300 Cogmind --------- Core Integrity 0/250 Matter 213/300 Energy 98/250 System Corruption 1% Temperature Cool (0) Movement Walking (190) Ox1 Location -9/Mines Parts ------- > --- POWER (1) -------- Ion Engine > --- PROPULSION (2) --- Aluminum Leg Aluminum Leg > --- UTILITY (2) ------ Large Storage Unit Core Shielding > --- WEAPON (2) ------- Heavy Assault Rifle Heavy Assault Rifle > --- INVENTORY (15) --- Humpback High-capacity Matter Pod (200) Structural Scanner Machine Analyzer Hacking Suite Hacking Suite High-powered Tractor Beam Grenade Launcher Datajack Peak State ------------ > --- POWER ------------ Light Nuclear Core > --- PROPULSION ------- Light Treads Light Treads > --- UTILITY ---------- Large Storage Unit Core Shielding > --- WEAPON ----------- Heavy Assault Rifle Heavy Assault Rifle > --- INVENTORY -------- Aluminum Leg Aluminum Leg Heat Sink High-capacity Matter Pod Structural Scanner Machine Analyzer Seismic Detector Hacking Suite High-powered Tractor Beam Assault Rifle Heavy Assault Rifle Heavy Assault Rifle Grenade Launcher Datajack [Rating: 13] Favorites ----------- Power Ion Engine Engine Ion Engine Power Core Light Nuclear Core Propulsion Light Treads Treads Light Treads Leg Aluminum Leg Utility Large Storage Unit Device Heat Sink Storage Large Storage Unit Protection Core Shielding Weapon Heavy Assault Rifle Ballistic Gun Heavy Assault Rifle Launcher Grenade Launcher Special Melee Weapon Datajack Build | -11 -10 -10 -10 -9 ------- Run | Scr Mat Min Exi Min Slots Evolved . | . . . . . Power . | . . . . . Propulsion . | . . . . . Utility . | . . . . . Weapon . | . . . . . Parts Attached 36 | 6 14 2 3 11 Power 6 | 1 1 . . 4 Engine 5 | 1 . . . 4 Core 1 | . 1 . . . Reactor . | . . . . . Propulsion 7 | 2 3 . . 2 Treads 5 | 2 3 . . . Leg 2 | . . . . 2 Wheel . | . . . . . Hover . | . . . . . Flight . | . . . . . Utility 6 | 1 4 . 1 . Device 1 | . 1 . . . Storage 2 | 1 1 . . . Processor . | . . . . . Hackware . | . . . . . Protection 3 | . 2 . 1 . Artifact . | . . . . . Weapon 17 | 2 6 2 2 5 Energy Gun . | . . . . . Energy Cannon . | . . . . . Ballistic Gun 13 | 2 4 2 1 4 Ballistic Cannon . | . . . . . Launcher 3 | . 2 . . 1 Special Weapon . | . . . . . Impact Weapon . | . . . . . Slashing Weapon . | . . . . . Piercing Weapon . | . . . . . Special Melee Weapon 1 | . . . 1 . Unidentified Prototypes . | . . . . . Parts Lost 10 | . 2 1 . 7 Power 4 | . 1 . . 3 Propulsion 3 | . 1 . . 2 Utility . | . . . . . Weapon 3 | . . 1 . 2 Highest Loss Streak 6 | . 1 1 . 6 To Critical Strikes . | . . . . . Average Slot Usage (%) 93 | . 98 100 82 98 Engine 7 | . 11 . . 12 Core 5 | . 2 14 14 . Treads 27 | . 27 28 28 26 Device 4 | . 8 . . . Storage 14 | . 14 14 14 14 Protection 9 | . 4 14 14 14 Ballistic Gun 19 | . 27 28 . 26 Special Melee Weapon 2 | . . . 10 . Naked Turns . | . . . . . Heaviest Build 32 | 13 32 31 30 30 Greatest Support 40 | 40 40 40 40 40 Greatest Overweight (x) 2 | 2 . . . 1 Average Overweight (x) . | . . . . . Largest Inventory Capacity 15 | 8 15 15 15 15 Average Capacity 14 | 7 13 15 15 15 Most Carried 15 | 7 15 15 15 15 Average Carried 13 | 4 12 14 14 14 Final Capacity 15 | 8 15 15 15 15 Final Carried 15 | 7 15 14 14 10 Class Distribution -------------------- 100% | Mutant Dominant Class ---------------- Mutant | -10/Materials Mutant | -10/Mines Mutant | -10/Exiles Mutant | -9/Mines Resources | -11 -10 -10 -10 -9 ----------- Run | Scr Mat Min Exi Min Matter Collected 1363 | 292 814 58 . 199 Remotely . | . . . . . Salvage Created 1612 | 110 1143 83 . 276 Parts 99 | 5 66 6 . 22 Haulers Intercepted 2 | . 2 . . . Recyclers Shooed 1 | . 1 . . . Parts Field Recycled . | . . . . . Retrieved Matter . | . . . . . Parts Self-Destructed . | . . . . . Prevented . | . . . . . Kills | -11 -10 -10 -10 -9 ------- Run | Scr Mat Min Exi Min Combat Hostiles Destroyed 40 | . 27 2 . 11 Guns 34 | . 24 2 . 8 AOE 6 | . 3 . . 3 Classes Destroyed 11 | 2 6 . . 3 Worker 1 | . . . . 1 Tunneler 1 | 1 . . . . Hauler 2 | . 2 . . . Recycler 2 | 1 1 . . . Mechanic 1 | . 1 . . . Operator 3 | . 3 . . . Watcher 2 | . 2 . . . Swarmer 10 | . 6 . . 4 Grunt 28 | . 21 2 . 5 Brawler 1 | . . . . 1 Assembled 1 | . . . . 1 Best Kill Streak 7 | 2 3 2 . 7 Combat Bots Only 7 | . 3 2 . 7 Max Kills in Single Turn 2 | 1 2 1 . 2 Gunslinging 1 | . 1 . . 1 Exploded 2 | . 2 . . 2 Melee . | . . . . . Uniques/NPCs Destroyed . | . . . . . Combat | -11 -10 -10 -10 -9 -------- Run | Scr Mat Min Exi Min Damage Taken 1520 | . 674 97 . 749 Core 259 | . 139 . . 120 Absorbed by Shields . | . . . . . Redirected to Shielding 31 | . 6 . . 25 Regen/Repaired (Parts) 80 | . 80 . . . Core Remaining (%) 100 | 100 . . . . Volleys Fired 144 | 8 103 6 2 25 Largest 2 | 2 2 2 1 2 Hottest 46 | 40 46 46 23 46 Shots Fired 272 | 16 202 11 2 41 Gun 263 | 16 198 11 2 36 Cannon . | . . . . . Launcher 9 | . 4 . . 5 Special . | . . . . . Kinetic 263 | 16 198 11 2 36 Thermal . | . . . . . Explosive 9 | . 4 . . 5 Electromagnetic . | . . . . . Robot Hit Streak 23 | 11 18 23 . 5 Robot Miss Streak 6 | 2 6 1 . 3 Penetration Max . | . . . . . Secondary Targets 6 | . 3 1 . 2 Max Gunslinging Chain 1 | . 1 1 . 1 Shots Hit Robots 172 | 11 127 9 . 25 Core Hits 82 | 4 56 5 . 17 Critical Kills . | . . . . . Critical Parts Destroyed 2 | . 2 . . . Critical Strikes 2 | . 2 . . . Destroy 2 | . 2 . . . Melee Attacks . | . . . . . Impact . | . . . . . Slashing . | . . . . . Piercing . | . . . . . Sneak Attacks . | . . . . . Combat Hostiles . | . . . . . Follow-up Attacks . | . . . . . Damage Inflicted 2821 | 123 1906 129 . 663 Guns 2332 | 123 1692 129 . 388 Cannons . | . . . . . Explosions 425 | . 160 . . 265 Melee . | . . . . . Ramming 64 | . 54 . . 10 Kinetic 2332 | 123 1692 129 . 388 Thermal . | . . . . . Explosive 425 | . 160 . . 265 Electromagnetic . | . . . . . Impact . | . . . . . Slashing . | . . . . . Piercing . | . . . . . Highest Corruption 1 | . 1 1 1 1 Average Corruption 1 | . 1 1 1 1 Corruption Purged . | . . . . . Corruption Blocked . | . . . . . Effects 15 | . 1 1 8 5 Message Errors 3 | . . . 2 1 Matter Fused 3 | . . . 3 . Heat Flow Errors 1 | . . . 1 . Energy Discharges 4 | . 1 1 . 2 Data Loss (minor) 3 | . . . 2 1 Misfires 1 | . . . . 1 Overload Shots . | . . . . . Overflow Damage . | . . . . . Projectiles . | . . . . . Explosions . | . . . . . Melee . | . . . . . Knockbacks . | . . . . . Impact . | . . . . . Kinetic . | . . . . . Secondary . | . . . . . Self-Inflicted Damage 47 | . 19 . . 28 Shots 3 | . 1 . . 2 Rammed 14 | . 13 . . 1 Targets Rammed 17 | . 15 . . 2 Kicked . | . . . . . Crushed 3 | . 2 . . 1 Highest Temperature 220 | . 12 15 220 26 Average Temperature 38 | . 4 9 110 15 Received Heat Transfer 474 | . 288 54 . 132 Siege Activations . | . . . . . Robots Corrupted . | . . . . . Combat Hostiles . | . . . . . Parts Fried . | . . . . . Impact Corruptions . | . . . . . Robots Melted . | . . . . . Combat Hostiles . | . . . . . Parts Melted . | . . . . . Heat Transferred . | . . . . . Parts Sabotaged . | . . . . . Parts Stolen . | . . . . . Parts Stripped . | . . . . . Power Chain Reactions . | . . . . . Missiles Intercepted . | . . . . . Alert | -11 -10 -10 -10 -9 ------- Run | Scr Mat Min Exi Min Peak Influence 523 | 10 523 265 . 240 Initial 203 | . 6 203 . . Average 236 | 4 267 260 . 191 Maximum Alert Level 2 | . 2 1 . 1 Low Security (%) 31 | 100 31 . . 25 Level 1 51 | . 43 100 . 74 Level 2 16 | . 25 . . . Level 3 . | . . . . . Level 4 . | . . . . . Level 5 . | . . . . . High Security . | . . . . . Max Security . | . . . . . Squads Dispatched 8 | . 8 . . . Investigation 4 | . 4 . . . Extermination . | . . . . . Reinforcement 4 | . 4 . . . Assault . | . . . . . Garrison . | . . . . . Intercept . | . . . . . Searches Triggered . | . . . . . Construction Impeded . | . . . . . Haulers Reinforced . | . . . . . Active Scanning Responses . | . . . . . Cargo Convoy Interrupts . | . . . . . Stealth | -11 -10 -10 -10 -9 --------- Run | Scr Mat Min Exi Min Distress Signals 2 | . 2 . . . Communications Jammed . | . . . . . Distress Signals . | . . . . . Times Spotted 55 | . 40 2 . 13 Peak Tracking Total 9 | . 3 2 9 4 Tactical Retreats 2 | . 1 . . 1 Traps | -11 -10 -10 -10 -9 ------- Run | Scr Mat Min Exi Min Traps Triggered 1 | . 1 . . . Indirectly . | . . . . . Trap Hack Attempts . | . . . . . Triggered . | . . . . . Disarmed . | . . . . . Reprogrammed . | . . . . . Reused . | . . . . . Traps Extracted . | . . . . . Installed . | . . . . . Triggered . | . . . . . Machines | -11 -10 -10 -10 -9 ---------- Run | Scr Mat Min Exi Min Machines Disabled 4 | . 2 . 2 . Max in Single Turn 1 | . 1 . 1 . Machines Sabotaged . | . . . . . Overloaded Fab Kills . | . . . . . Hacking | -11 -10 -10 -10 -9 --------- Run | Scr Mat Min Exi Min Machines Accessed 7 | . 4 1 2 . Terminals 4 | . 3 1 . . Fabricators . | . . . . . Repair Stations 1 | . 1 . . . Recycling Units . | . . . . . Scanalyzers . | . . . . . Garrison Access . | . . . . . Total Hacks 18 | . 14 2 2 . Successful 11 | . 7 2 2 . Failed 6 | . 6 . . . Catastrophic 1 | . 1 . . . Database Lockouts 1 | . 1 . . . Manual 11 | . 9 1 1 . Terminals 13 | . 11 2 . . Fabricators . | . . . . . Repair Stations 3 | . 3 . . . Recycling Units . | . . . . . Scanalyzers . | . . . . . Garrison Access . | . . . . . Terminal Hacks 9 | . 5 2 2 . Record 1 | . . . 1 . Robot Schematic 1 | . . 1 . . Robot Analysis 3 | . 3 . . . Registered Prototypes 1 | . 1 . . . Zone Layout 2 | . 1 1 . . EX-Prototype ID Bank 1 | . . . 1 . Fabricator Hacks . | . . . . . Repair Station Hacks 2 | . 2 . . . Scan Component 1 | . 1 . . . Repair 1 | . 1 . . . Recycling Unit Hacks . | . . . . . Scanalyzer . | . . . . . Garrison Access Hacks . | . . . . . Unauthorized Hacks . | . . . . . Terminals . | . . . . . Fabricators . | . . . . . Repair Stations . | . . . . . Recycling Units . | . . . . . Scanalyzers . | . . . . . Garrison Access . | . . . . . Data Cores Recovered . | . . . . . Used . | . . . . . Hacking Detections 5 | . 4 1 . . Full Trace Events 3 | . 3 . . . Feedback Events 1 | . 1 . . . Corruption 1 | . 1 . . . Feedback Blocked . | . . . . . Robot Schematics Acquired 1 | . . 1 . . Robots Built . | . . . . . Authchips . | . . . . . Time . | . . . . . Total Robot Build Rating . | . . . . . Part Schematics Acquired . | . . . . . Parts Built . | . . . . . Authchips . | . . . . . Time . | . . . . . Total Part Build Rating . | . . . . . Parts Repaired 1 | . 1 . . . Time 13 | . 13 . . . Parts Recycled . | . . . . . Recycled Matter . | . . . . . Retrieved Matter . | . . . . . Retrieved Components . | . . . . . Parts Scanalyzed . | . . . . . Part Schematics Acquired . | . . . . . Parts Damaged . | . . . . . Bothacking | -11 -10 -10 -10 -9 ------------ Run | Scr Mat Min Exi Min Used RIF Installer . | . . . . . Robots Hacked . | . . . . . Non-combat . | . . . . . Combat . | . . . . . Robot Hacks Applied . | . . . . . Relay Couplers Released . | . . . . . Fabnet Peak Effective % . | . . . . . Robots Rewired . | . . . . . Allies Hacked . | . . . . . Hacks Repelled . | . . . . . Allies | -11 -10 -10 -10 -9 -------- Run | Scr Mat Min Exi Min Total Allies . | . . . . . Largest Group . | . . . . . Highest-Rated Group . | . . . . . Highest-Rated Ally . | . . . . . Total Orders . | . . . . . Ally Attacks . | . . . . . Total Damage . | . . . . . Kills . | . . . . . Allies Corrupted . | . . . . . Allies Melted . | . . . . . Intel | -11 -10 -10 -10 -9 ------- Run | Scr Mat Min Exi Min Robot Analysis Total 3 | . 3 . . . Derelict Logs Recovered 2 | . . . . 2 Drone Launches . | . . . . . Drone Recoveries . | . . . . . Exploration | -11 -10 -10 -10 -9 ------------- Run | Scr Mat Min Exi Min Turns Passed 3261 | 133 1545 193 886 504 Spaces Moved 1655 | 61 703 109 547 235 Core 7 | 7 . . . . Treads 1647 | 54 703 109 547 234 Legs 1 | . . . . 1 Wheels . | . . . . . Hover . | . . . . . Flight . | . . . . . Fastest Speed 50 | 50 160 160 160 160 Average Speed 159 | 156 160 160 160 160 Slowest Speed 190 | 160 160 160 160 190 Overloaded Moves . | . . . . . Propulsion Burnouts . | . . . . . Robots Hopped . | . . . . . Cave-ins Triggered . | . . . . . Exploration Rate (%) 46 | 5 90 16 70 49 Regions Visited 4 Branch Regions 3 Pre-discovered Areas 1 | . . . 1 . Known Exits Taken . | . . . . . Unknown Exits Taken 4 | 1 1 1 1 . Scrap Searched 2 | . . 1 . 1 Spaces Dug . | . . . . . Terrain Destroyed 65 | . 36 . . 29 Melee . | . . . . . Projectile . | . . . . . AOE 65 | . 36 . . 29 Terrain Rammed . | . . . . . Walls Destroyed . | . . . . . Machines Disabled . | . . . . . Actions | -11 -10 -10 -10 -9 --------- Run | Scr Mat Min Exi Min Total 2001 | 81 925 116 558 321 Wait 113 | . 67 . . 46 Move 1651 | 60 702 108 546 235 Hop . | . . . . . Pick Up 24 | 7 14 . 2 1 Fast Attach 11 | 6 3 . . 2 Attach 11 | . 2 1 3 5 Detach 3 | . 1 . 2 . Swap 14 | . 9 1 . 4 Drop 13 | . 9 . 3 1 Fire 144 | 8 103 6 2 25 Melee . | . . . . . Ram . | . . . . . Kick . | . . . . . Crush 17 | . 15 . . 2 Escape Stasis . | . . . . . Rewire . | . . . . . Trap . | . . . . . Miscellaneous . | . . . . . Route ------- -11/Scrapyard -10/Materials (discovered 4 exits: [*Mat x3] / *Min) -10/Mines -10/Exiles (discovered 2 exits: [*Min x2]) -9/Mines (discovered 2 exits: [*Mat x2]) History --------- Turn | Location | Event 18 | -11/Scrapyard | Discovered new exit (range 14) 134 | -11/Scrapyard | Entered Materials 304 | -10/Materials | Build established: Mutant 479 | -10/Materials | Discovered new exit (range 9) 591 | -10/Materials | Discovered new exit (range 15) 784 | -10/Materials | Discovered new exit (range 14) 1144 | -10/Materials | Central database locked down 1499 | -10/Materials | Repaired Lgt. Treads 1539 | -10/Materials | Core integrity fell below 50% 1582 | -10/Materials | Discovered new exit (range 15) 1679 | -10/Materials | Entered Mines 1757 | -10/Mines | Deemed a non-threat by the Exiles lab entrance 1758 | -10/Mines | Discovered new exit (range 5) 1817 | -10/Mines | Assembled infested the area 1822 | -10/Mines | Assisted by a Guerilla fighting off Assembled 1872 | -10/Mines | Entered Exiles 1913 | -10/Exiles | Met 8R-AWN 1939 | -10/Exiles | Met EX-HEX 2016 | -10/Exiles | Met EX-DEC 2041 | -10/Exiles | Learned location of Zion (-6) 2244 | -10/Exiles | Discovered new exit (range 15) 2538 | -10/Exiles | Met EX-BIN 2561 | -10/Exiles | Aligned with FarCom system 2562 | -10/Exiles | Given EX-Vault access code 2601 | -10/Exiles | Opened EX-Vault 2634 | -10/Exiles | Warned to stay clear of 0b10 Research branches 2726 | -10/Exiles | Attacked by the Exiles 2745 | -10/Exiles | Discovered new exit (range 10) 2758 | -10/Exiles | Entered Mines 2804 | -9/Mines | Destroyed 7 combat bots 2849 | -9/Mines | Discovered new exit (range 11) 2919 | -9/Mines | Learned 8 Materials zone layouts 2921 | -9/Mines | Discovered new exit (range 3) 3030 | -9/Mines | Learned Materials garrison access intel 3063 | -9/Mines | A weapon hastily lodged in a ceiling crevice suddenly fell to the ground 3124 | -9/Mines | Excavation squad dispatched 3124 | -9/Mines | A large section of the Mines collapsed 3245 | -9/Mines | Core integrity fell below 20% 3262 | -9/Mines | Destroyed by as-09154 with Assembled Rifle Last Messages --------------- 03133_ as-76041 destroyed. 03136_ Acquired 14 matter. 03184_ T-07 Excavator is excavating. 03198_ System corrupted: Energy discharge (-41). 03214_ G-34 Mercenary destroyed. 03218_ G-34 Mercenary knocked back. 03222_ Acquired 48 matter. 03225_ as-01577 destroyed. 03225_ Hvy. Assault Rifle destroyed. 03237_ Lgt. Ion Engine destroyed. 03238_ B-36 Bruiser destroyed. 03238_ Switching to secondary target: G-34 Mercenary. 03238_ Lgt. Treads destroyed. 03239_ Acquired 54 matter. 03240_ Assault Rifle destroyed. 03245_ Lgt. Treads destroyed. 03246_ K-01 Serf collects debris. 03254_ Lgt. Ion Engine destroyed. 03255_ G-34 Mercenary destroyed. 03260_ Acquired Ion Engine. Map ----- +----------------------------------------------------+ | ??????????????????????????????????????????????? | | ??????????????????????????????????????????????? | | ?????????????????????????????????????????????## | | ?????????????????????????????????????????????# | | ?????????????????????????????????????????????# | | ???????????????????????####??????????????????# | | ??????????????????????## #??????????????????# | | ?????????????????????## #??????????????????# | | ??????#???????????#### #??????????????????# | | ??????# ?????????## #???????????????????# | | ??????? ????????# ##??????????????????## | | ???????? ????????# ###?????????????????? | | ????????? ???????# #####?????????????? | | ?????????# ??????# ##????????????? | | ?????????# ????## ##???????????? | | ?????????# ##### | ##??????????? | | ?????????# ##########?? | | ?????????# #?? | | ?????????########## ####### #?? | | ??????????????????## ### ##?????# #?? | | ??????????????????## #?## ##??????# #?? | | ?????????????????## #??#####???????# #?? | | ???????????######## #####??????????# #?? | | ????????#### #; % #??????????# #?? | | ??????### #% ### #??????????# #?? | | ?????## ##### ####=!@ ##??????????????# #?? | | ?????# # ""#####?##==####???????????????# #?? | | ?????# ## = ####%=#??????????????????# #?? | | ????# #" |% a #??????????????????# #?? | | ????# ### ##### #??????????????????# #?? | | ????## #?#######???# ####???????????????# #?? | | ?????###???####?????# #???????????????# #?? | | ????????????????????##### #???????????????# #?? | | ????????????????????????# ## ##### #?? | | ????????????????????????# #???????# ### | | ????????????????????????# #???????# #### ## | | ????????????????????????# #??????# #### # | | ????????????????????????# #?????# | | ????????????????????????# #?????# | | ????????????????????????# #?????## ########## | | ????????????????????????# #???????????????????? | | ???????????????????????? #???????????????????? | | ????????????????????????# ????????????????????? | | ????????????????????????? ????????????????????? | | ????????????????????????? ????????????????????? | | ????????????????????????? ????????????????????? | | ?????????????????????????#????????????????????? | | ??????????????????????????????????????????????? | | ??????????????????????????????????????????????? | | ??????????????????????????????????????????????? | +----------------------------------------------------+ Best States ------------- Heat Dissipation 35 Energy Generation 14 Energy Capacity 250 Matter Stores 300 Matter Capacity 300 Sight Range 16 Terrain Scan Density 10 Core Shielding 20 Evasion (%) 40 Recoil Reduction 2 Item Schematics ----------------- None Robot Schematics ------------------ O-16 Technician | -10/Mines | Hacked Fabricated ------------ Nothing Alien Tech Used ----------------- None Achievements -------------- None Challenges ------------ None Game ------ Seed GlidesysFlyingAmplifier Manual? 0 Play Time 00:19:11 Cumulative 546.5 hours Start 2022.10.08 @ 18:03:55 End 2022.10.08 @ 18:23:00 Sessions 1 Manual Loads 0 Difficulty Rogue Special Mode None Game No. 530 Rogue 315 Adventurer 112 Explorer 103 Win Type - Total 36 Types 24/0/8/2/0/0/1/1/0 Lore% 87 Gallery% 92 Achievement% 80 Wizard Run 0 Options --------- ASCII 0 Keyboard 1 Movement Vi Keybinds 1 Fullscreen 2 Font 18/SmallcapsGlow Map View 76x50 Tactical HUD 1 Map Filters NONE Filters NONE Steam X RUN: 9b428f5d-fe4e-4875-b60e-818ab138d1b5